Department Family,Entity,Date of Payment,Expense Type,Expense Area,Supplier,Transaction number,Amount in Sterling,Expense Description
Government Equalities Office,Government Equalities Office,01/04/2011,Internal Audit,Corporate Services,DCLG,5106160768,"1,477.80",Audit Services
Government Equalities Office,Government Equalities Office,01/04/2011,Training,Corporate Services,CIPD,5106160753,"1,899.00",Staff Training
Government Equalities Office,Government Equalities Office,13/04/2011,Internal Audit,Corporate Services,DCLG,5106161587,"3,882.85",Audit Services
Government Equalities Office,Government Equalities Office,15/04/2011,Travel and Subsistence Account,Corporate Services,REDFERN TRAVEL LIMITED,5106161753,"2,992.14",Travel and Subsistence Costs
Government Equalities Office,Government Equalities Office,18/04/2011,Office Supplies,Corporate Services,BANNER BUSINESS SUPPLIES LTD,5106161866,768.01,Stationery costs
Government Equalities Office,Government Equalities Office,18/04/2011,Training,Corporate Services,BPP PROFESSIONAL EDUCATION,5106161865,"2,800.00",Staff Training
Government Equalities Office,Government Equalities Office,19/04/2011,Professional services,Corporate Services,DCLG,5106161889,"3,583.33",CLG Finance Shared Service Charge
Government Equalities Office,Government Equalities Office,20/04/2011,Legal Fees,Corporate Services,TREASURY SOLICITORS DEPT,5106161964,795.9,Legal Services
Government Equalities Office,Government Equalities Office,28/04/2011,Government Procurement Card (expense),Corporate Services,COMPANY BARCLAYCARD,5106162224,"1,465.08",GPC transactions
Government Equalities Office,Government Equalities Office,01/04/2011,Agency Staff,Discrimination Law,REED SPECIALIST RECRUITMENT LTD,5106160814,823.98,Services Of Temporary Staff
Government Equalities Office,Government Equalities Office,01/04/2011,Training,Discrimination Law,UNIVERSITY OF LEICESTER,5106160813,"3,925.00",Staff Training
Government Equalities Office,Government Equalities Office,05/04/2011,Agency Staff,Discrimination Law,REED SPECIALIST RECRUITMENT LTD,5106160995,648.55,Services Of Temporary Staff
Government Equalities Office,Government Equalities Office,05/04/2011,Agency Staff,Discrimination Law,REED SPECIALIST RECRUITMENT LTD,5106160996,829.3,Services Of Temporary Staff
Government Equalities Office,Government Equalities Office,05/04/2011,Agency Staff,Discrimination Law,REED SPECIALIST RECRUITMENT LTD,5106160997,818.66,Services Of Temporary Staff
Government Equalities Office,Government Equalities Office,06/04/2011,Agency Staff,Discrimination Law,REED SPECIALIST RECRUITMENT LTD,5106161083,797.4,Services Of Temporary Staff
Government Equalities Office,Government Equalities Office,07/04/2011,Training,Discrimination Law,LEADERSHIP SKILLS TRAINING LTD,5106161177,845.75,Staff Training
Government Equalities Office,Government Equalities Office,14/04/2011,Agency Staff,Discrimination Law,REED SPECIALIST RECRUITMENT LTD,5106161682,818.66,Services Of Temporary Staff
Government Equalities Office,Government Equalities Office,21/04/2011,Agency Staff,Discrimination Law,REED SPECIALIST RECRUITMENT LTD,5106162046,839.93,Services Of Temporary Staff
Government Equalities Office,Government Equalities Office,01/04/2011,Research,Evidence & Equality at Work,INSTITUTE FOR EMPLOYMENT STUDIES,5106160697,"10,230.00",Research Costs
Government Equalities Office,Government Equalities Office,18/04/2011,Training,Evidence & Equality at Work,LEADERSHIP SKILLS TRAINING LTD,5106161789,"1,250.00",Staff Training
Government Equalities Office,Government Equalities Office,07/04/2011,Publishing,Gender Equality Policy & Inclusion,CENTRAL OFFICE OF INFORMATION,5106161176,"2,240.40",Publication Costs
Government Equalities Office,Government Equalities Office,07/04/2011,Training,Gender Equality Policy & Inclusion,OPD SOLUTIONS LTD,5106161178,674,Staff Training
Government Equalities Office,Government Equalities Office,15/04/2011,Publishing,Gender Equality Policy & Inclusion,CENTRAL OFFICE OF INFORMATION,5106161779,"7,882.00",Publication Costs
Government Equalities Office,Government Equalities Office,15/04/2011,Travel and Subsistence Account,Gender Equality Policy & Inclusion,REDFERN TRAVEL LIMITED,5106161753,"2,505.50",Travel and Subsistence Costs
Government Equalities Office,Government Equalities Office,15/04/2011,Conferences and Meeting Facilities,GEO - Women's National Commission,REDFERN TRAVEL LIMITED,5106161753,"2,793.00",Travel and Subsistence Costs
Government Equalities Office,Government Equalities Office,15/04/2011,Travel and Subsistence Account,GEO - Women's National Commission,REDFERN TRAVEL LIMITED,5106161753,534.4,Travel and Subsistence Costs
Government Equalities Office,Government Equalities Office,01/04/2011,Printing,GEO Communications,CENTRAL OFFICE OF INFORMATION,5106160776,"4,000.00",Printing Services
Government Equalities Office,Government Equalities Office,01/04/2011,Printing,GEO Communications,CORPORATE DOCUMENT SERVICES LTD,5106160696,"3,496.92",Printing Services
Government Equalities Office,Government Equalities Office,07/04/2011,Printing,GEO Communications,INSPIRED SERVICES PUBLISHING LTD,5106161179,821,Printing Service
Government Equalities Office,Government Equalities Office,12/04/2011,Printing,GEO Communications,CORPORATE DOCUMENT SERVICES LTD,5106161477,"6,352.50",Printing Costs
Government Equalities Office,Government Equalities Office,19/04/2011,Printing,GEO Communications,CENTRAL OFFICE OF INFORMATION,5106161898,"3,150.00",Printing Service
Government Equalities Office,Government Equalities Office,15/04/2011,Legal Fees,GEO Legal Services,TREASURY SOLICITORS DEPT,5106161782,"73,362.00",Legal fees for advisory services from TSOL
Government Equalities Office,Government Equalities Office,01/04/2011,Mobile phone costs,GEO Private Office 1,HOME OFFICE,5106160703,924,Phone charges
Government Equalities Office,Government Equalities Office,01/04/2011,Vehicle hire,GEO Private Office 1,HOME OFFICE,5106160703,"1,366.30",Home Office Shared Cost
Government Equalities Office,Government Equalities Office,21/04/2011,Grant in Aid to NDPBs (non budget),Sponsorship & PSA,EQUALITY & HUMAN RIGHTS COMMISSION,2600000094,"7,850,000.00",EHRC Funding
Government Equalities Office,Government Equalities Office,01/04/2011,Current Grants to Non Profit Bodies,Strategy Directorate,EQUALITY SOUTH WEST,2600000092,"10,000.00",EREN Grant
Government Equalities Office,Government Equalities Office,06/04/2011,Current Grants to Non Profit Bodies,Strategy Directorate,EQUALITY SOUTH WEST,2600000093,"10,000.00",EREN Grant
